fUSD/lending_fUSD_20260201
["ID","MTS","AMOUNT","RATE_DAILY","PERIOD"]
[404188330,1769914251881,-500.0,0.00043287,120]
[404188331,1769914251889,-531.66569699,0.00043287,120]
[404188332,1769914251899,-500.0,0.00043287,120]
[404188333,1769914251907,-500.0,0.00043287,120]
[404188334,1769914251916,-500.0,0.00043287,120]
[404188335,1769914251925,-500.0,0.00043287,120]
[404188336,1769914251934,-500.0,0.00043287,120]
[404188337,1769914251943,-500.0,0.00043287,120]
[404188338,1769914251953,-500.0,0.00043287,120]
[404188339,1769914251962,-500.0,0.00043287,120]
[404188340,1769914251972,-500.0,0.00043287,120]
[404188341,1769914251981,-500.0,0.00043287,120]
[404188342,1769914251990,-500.0,0.00043287,120]
[404188343,1769914251999,-500.0,0.00043287,120]
[404188344,1769914252008,-500.0,0.00043287,120]
[404188345,1769914252017,-500.0,0.00043287,120]
[404188346,1769914252026,-500.0,0.00043287,120]
[404188347,1769914252035,-500.0,0.00043287,120]
[404188348,1769914252045,-500.0,0.00043287,120]
[404188349,1769914252054,-509.58452416,0.00043287,120]
[404188350,1769914252063,-500.0,0.00043287,120]
[404188351,1769914252072,-500.0,0.00043287,120]
[404188352,1769914252082,-500.0,0.00043287,120]
[404188353,1769914252091,-500.0,0.00043287,120]
[404188354,1769914252100,-500.0,0.00043287,120]
[404188355,1769914252109,-500.0,0.00043287,120]
[404188356,1769914252117,-500.0,0.00043287,120]
[404188357,1769914252126,-508.56941312,0.00043287,120]
[404188358,1769914252135,-546.61649452,0.00043287,120]
[404188359,1769914252144,-500.0,0.00043287,120]
[404188360,1769914252154,-500.0,0.00043287,120]
[404188361,1769914252164,-500.0,0.00043287,120]
[404188362,1769914252174,-500.0,0.00043287,120]
[404188363,1769914252184,-500.0,0.00043287,120]
[404188364,1769914252195,-500.0,0.00043287,120]
[404188365,1769914252205,-500.0,0.00043287,120]
[404188366,1769914252214,-500.0,0.00043287,120]
[404188367,1769914252224,-500.0,0.00043287,120]
[404188368,1769914252234,-500.0,0.00043287,120]
[404188369,1769914252243,-245.24844449,0.00043287,120]
[404188370,1769914252254,-500.0,0.00043287,120]
[404188371,1769914252264,-500.0,0.00043287,120]
[404188372,1769914252275,-500.0,0.00043287,120]
[404188373,1769914252285,-500.0,0.00043287,120]
[404188374,1769914252295,-500.0,0.00043287,120]
[404188375,1769914252304,-500.0,0.00043287,120]
[404188376,1769914252315,-500.0,0.00043287,120]
[404188377,1769914252325,-573.23622272,0.00043287,120]
[404188378,1769914252335,-500.0,0.00043287,120]
[404188379,1769914252344,-500.0,0.00043287,120]
[404188380,1769914252354,-213.86417714,0.00043287,120]
[404188381,1769914252363,-500.0,0.00043287,120]
[404188382,1769914252372,-500.0,0.00043287,120]
[404188383,1769914252382,-500.0,0.00043287,120]
[404188384,1769914252391,-500.0,0.00043287,120]
[404188385,1769914252402,-500.0,0.00043287,120]
[404188386,1769914252412,-500.0,0.00043287,120]
[404188387,1769914252422,-506.41454303,0.00043287,120]
[404188388,1769914252431,-500.0,0.00043287,120]
[404188389,1769914252443,-500.0,0.00043287,120]
[404188390,1769914252454,-516.77448715,0.00043287,120]
[404188391,1769914252464,-500.0,0.00043287,120]
[404188392,1769914252474,-500.0,0.00043287,120]
[404188393,1769914252484,-500.0,0.00043287,120]
[404188394,1769914252494,-500.0,0.00043287,120]
[404188395,1769914252507,-567.13520464,0.00043287,120]
[404188396,1769914252516,-500.0,0.00043287,120]
[404188397,1769914252525,-513.19556985,0.00043287,120]
[404188398,1769914252535,-500.0,0.00043287,120]
[404188399,1769914252545,-500.0,0.00043287,120]
[404188400,1769914252554,-521.1604815,0.00043287,120]
[404188401,1769914252564,-500.0,0.00043287,120]
[404188402,1769914252573,-500.0,0.00043287,120]
[404188403,1769914252583,-500.0,0.00043287,120]
[404188404,1769914252594,-500.0,0.00043287,120]
[404188405,1769914252604,-500.0,0.00043287,120]
[404188406,1769914252615,-500.0,0.00043287,120]
[404188407,1769914252628,-500.0,0.00043287,120]
[404188408,1769914252638,-500.0,0.00043287,120]
[404188409,1769914252647,-500.0,0.00043287,120]
[404188410,1769914252659,-500.0,0.00043287,120]
[404188411,1769914252669,-500.0,0.00043287,120]
[404188412,1769914252680,-522.3713423,0.00043287,120]
[404188413,1769914252691,-500.0,0.00043287,120]
[404188414,1769914252702,-500.0,0.00043287,120]
[404188415,1769914252712,-500.0,0.00043287,120]
[404188416,1769914252723,-500.0,0.00043287,120]
[404188417,1769914252734,-500.0,0.00043287,120]
[404188418,1769914252744,-500.0,0.00043287,120]
[404188419,1769914252755,-504.10143805,0.00043287,120]
[404188420,1769914252764,-500.0,0.00043287,120]
[404188421,1769914252774,-500.0,0.00043287,120]
[404188422,1769914252784,-527.53988728,0.00043287,120]
[404188423,1769914252794,-527.04886389,0.00043287,120]
[404188424,1769914252804,-1758.04,0.00043287,2]
[404188425,1769914252814,-500.0,0.00043287,120]
[404188426,1769914252824,-500.0,0.00043287,120]
[404188427,1769914252833,-576.22010572,0.00043287,120]
[404188428,1769914252842,-1758.04,0.00043287,2]
[404188429,1769914252854,-500.0,0.00043287,120]
[404188430,1769914252864,-1758.04,0.00043287,2]
[404188431,1769914252874,-500.0,0.00043287,120]
[404188432,1769914252884,-1758.04,0.00043287,2]
[404188433,1769914252894,-500.0,0.00043287,120]
[404188434,1769914252904,-519.14236006,0.00043287,120]
[404188435,1769914252914,-500.0,0.00043287,120]
[404188436,1769914252923,-1758.04,0.00043287,2]
[404188437,1769914252933,-500.0,0.00043287,120]
[404188438,1769914252942,-1758.04,0.00043287,2]
[404188439,1769914252955,-500.0,0.00043287,120]
[404188440,1769914252964,-1758.04,0.00043287,2]
[404188441,1769914252973,-500.0,0.00043287,120]
[404188442,1769914252984,-1758.04,0.00043287,2]
[404188443,1769914252994,-500.0,0.00043287,120]
[404188444,1769914253004,-1758.04,0.00043287,2]
[404188445,1769914253014,-5196.67,0.00043287,14]
[404188446,1769914253024,-500.0,0.00043287,120]
[404188447,1769914253034,-500.0,0.00043287,120]
[404188448,1769914253044,-1758.04,0.00043287,2]
[404188449,1769914253054,-5196.67,0.00043287,14]
[404188450,1769914253063,-500.0,0.00043287,120]
[404188451,1769914253073,-500.0,0.00043287,120]
[404188452,1769914253083,-1758.04,0.00043287,2]
[404188453,1769914253094,-5196.67,0.00043287,14]
[404188454,1769914253104,-500.0,0.00043287,120]
[404188455,1769914253114,-500.0,0.00043287,120]
[404188456,1769914253124,-500.0,0.00043287,120]
[404188457,1769914253134,-1758.04,0.00043287,2]
[404188458,1769914253144,-5196.67,0.00043287,14]
[404188459,1769914253154,-500.0,0.00043287,120]
[404188460,1769914253163,-500.0,0.00043287,120]
[404188461,1769914253173,-500.0,0.00043287,120]
[404188462,1769914253182,-1758.04,0.00043287,2]
[404188463,1769914253192,-5196.67,0.00043287,14]
[404188464,1769914253201,-500.0,0.00043287,120]
[404188465,1769914253210,-500.0,0.00043287,120]
[404188466,1769914253219,-500.0,0.00043287,120]
[404188467,1769914253228,-1758.04,0.00043287,2]
[404188468,1769914253238,-5196.67,0.00043287,14]
[404188469,1769914253247,-500.0,0.00043287,120]
[404188470,1769914253256,-550.97936263,0.00043287,120]
[404188471,1769914253266,-500.0,0.00043287,120]
[404188472,1769914253275,-1758.04,0.00043287,2]
[404188473,1769914253286,-5196.67,0.00043287,14]
[404188474,1769914253295,-500.0,0.00043287,120]
[404188475,1769914253305,-500.0,0.00043287,120]
[404188476,1769914253315,-500.0,0.00043287,120]
[404188477,1769914253325,-1758.04,0.00043287,2]
[404188478,1769914253334,-5196.67,0.00043287,14]
[404188479,1769914253344,-500.0,0.00043287,120]
[404188480,1769914253354,-537.37248479,0.00043287,120]
[404188481,1769914253364,-1758.04,0.00043287,2]
[404188482,1769914253373,-5196.67,0.00043287,14]
[404188483,1769914253383,-500.0,0.00043287,120]
[404188484,1769914253393,-1758.04,0.00043287,2]
[404188485,1769914253403,-5196.67,0.00043287,14]
[404188486,1769914253412,-500.0,0.00043287,120]
[404188487,1769914253421,-1758.04,0.00043287,2]
[404188488,1769914253434,-5196.67,0.00043287,14]
[404188489,1769914253445,-500.0,0.00043287,120]
[404188490,1769914253456,-1758.04,0.00043287,2]
[404188491,1769914253465,-5196.67,0.00043287,14]
[404188492,1769914253480,-500.0,0.00043287,120]
[404188493,1769914253490,-1758.04,0.00043287,2]
[404188494,1769914253500,-5196.67,0.00043287,14]
[404188495,1769914253510,-500.0,0.00043287,120]
[404188496,1769914253520,-1758.04,0.00043287,2]
[404188497,1769914253529,-5196.67,0.00043287,14]
[404188498,1769914253540,-500.0,0.00043287,120]
[404188499,1769914253550,-1758.04,0.00043287,2]
[404188500,1769914253560,-5196.67,0.00043287,14]
[404188501,1769914253570,-500.0,0.00043287,120]
[404188502,1769914253579,-500.0,0.00043287,120]
[404188503,1769914253589,-500.0,0.00043287,120]
[404188504,1769914253599,-1758.26340188,0.00043287,2]
[404188505,1769914253609,-5196.67,0.00043287,14]
[404188506,1769914253619,-500.0,0.00043287,120]
[404188507,1769914253629,-500.0,0.00043287,120]
[404188508,1769914253640,-500.0,0.00043287,120]
[404188509,1769914253650,-5196.67,0.00043287,14]
[404188510,1769914253660,-500.0,0.00043287,120]
[404188511,1769914253670,-500.0,0.00043287,120]
[404188512,1769914253684,-500.0,0.00043287,120]
[404188513,1769914253694,-5196.67,0.00043287,14]
[404188514,1769914253705,-500.0,0.00043287,120]
[404188515,1769914253715,-500.0,0.00043287,120]
[404188516,1769914253725,-500.0,0.00043287,120]
[404188517,1769914253735,-5196.67,0.00043287,14]
[404188518,1769914253746,-500.0,0.00043287,120]
[404188519,1769914253756,-500.0,0.00043287,120]
[404188520,1769914253765,-500.0,0.00043287,120]
[404188521,1769914253775,-5196.67,0.00043287,14]
[404188522,1769914253785,-500.0,0.00043287,120]
[404188523,1769914253795,-500.0,0.00043287,120]
[404188524,1769914253805,-500.0,0.00043287,120]
[404188525,1769914253815,-5196.67,0.00043287,14]
[404188526,1769914253825,-500.0,0.00043287,120]
[404188527,1769914253835,-500.0,0.00043287,120]
[404188528,1769914253845,-500.0,0.00043287,120]
[404188529,1769914253856,-5196.67,0.00043287,14]
[404188530,1769914253866,-500.0,0.00043287,120]
[404188531,1769914253880,-500.0,0.00043287,120]
[404188532,1769914253890,-865.55,0.00043287,2]
[404188533,1769914253901,-5196.67,0.00043287,14]
[404188534,1769914253911,-500.0,0.00043287,120]
[404188535,1769914253921,-500.0,0.00043287,120]
[404188536,1769914253931,-865.55,0.00043287,2]
[404188537,1769914253941,-500.0,0.00043287,120]
[404188538,1769914253951,-5196.84940566,0.00043287,14]
[404188539,1769914253961,-506.47637684,0.00043287,120]
[404188540,1769914253971,-505.56670237,0.00043287,120]
[404188541,1769914253981,-500.0,0.00043287,120]
[404188542,1769914253992,-865.55,0.00043287,2]
[404188543,1769914254002,-537.58579144,0.00043287,120]
[404188544,1769914254012,-500.0,0.00043287,120]
[404188545,1769914254022,-865.55,0.00043287,2]
[404188546,1769914254033,-500.0,0.00043287,120]
[404188547,1769914254043,-865.55,0.00043287,2]
[404188548,1769914254053,-865.55,0.00043287,2]
[404188549,1769914254063,-500.0,0.00043287,120]
[404188550,1769914254076,-500.0,0.00043287,120]
[404188551,1769914254086,-865.55,0.00043287,2]
[404188552,1769914254096,-865.55,0.00043287,2]
[404188553,1769914254107,-502.75869384,0.00043287,120]
[404188554,1769914254117,-865.55,0.00043287,2]
[404188555,1769914254127,-865.55,0.00043287,2]
[404188556,1769914254137,-296.92552721,0.00043287,120]
[404188557,1769914254147,-500.0,0.00043287,120]
[404188558,1769914254157,-865.55,0.00043287,2]
[404188559,1769914254167,-500.0,0.00043287,120]
[404188560,1769914254177,-865.55,0.00043287,2]
[404188561,1769914254188,-541.76499209,0.00043287,120]
[404188562,1769914254197,-500.0,0.00043287,120]
[404188563,1769914254209,-865.55,0.00043287,2]
[404188564,1769914254220,-201.89393773,0.00043287,120]
[404188565,1769914254230,-17335.78584012,0.00043287,2]
[404188566,1769914254242,-12135.05008809,0.00043287,4]
[404188567,1769914254252,-179.19738909,0.00043295,120]
[404188568,1769914254262,-660.95862458,0.00043295,120]
[404188569,1769914254271,-177.66414959,0.00043295,120]
[404188570,1769914254281,-174.19460559,0.00043295,120]
[404188571,1769914254291,-11631.58772366,0.000433,14]
[404188572,1769914254300,-461.83140989,0.000433,10]
[404188573,1769914254310,-391.0,0.00043308,2]
[404188574,1769914254319,-379.0,0.0004331,2]
[404188575,1769914254329,-164.0,0.00043313,30]
[404188576,1769914254340,-383.0,0.00043329,2]
[404188577,1769914254350,-297.88900341,0.00043346,2]
[404188578,1769914254361,-391.0,0.00043347,2]
[404188579,1769914254371,-299.61913853,0.00043392,2]
[404188580,1769914254380,-153.0,0.000434,120]
[404188581,1769914254391,-2842.510307,0.000434,55]
[404188582,1769914254401,-393.0,0.000434,2]
[404188583,1769914254411,-379.0,0.00043413,2]
[404188584,1769914254420,-14849.9288,0.00043432,30]
[404188585,1769914254434,-400.0,0.0004347,3]
[404188586,1769914254445,-400.0,0.0004347,3]
[404188587,1769914254459,-400.0,0.0004347,3]
[404188588,1769914254478,-451.23048311,0.0004347,3]
[404188589,1769914254488,-537.74,0.000435,5]
[404188590,1769914254499,-275.31,0.000435,60]
[404188591,1769914254512,-230.64,0.000435,120]
[404188592,1769914254523,-5294.51162254,0.000435,120]
[404188593,1769914254534,-558.240183,0.000435,55]
[404188594,1769914254545,-735.0,0.000435,120]
[404188595,1769914254555,-200.0,0.0004352,120]
[404188596,1769914254567,-174.0,0.00043527,30]
[404188597,1769914254580,-7761.0,0.00043528,30]
[404188598,1769914254591,-196.0,0.00043528,30]
[404188599,1769914254602,-1000.0,0.00043528,30]
[404188600,1769914254614,-1000.0,0.00043528,30]
[404188601,1769914254624,-572.0,0.00043528,120]
[404188602,1769914254635,-274.08680113,0.00043528,7]
[404188603,1769914254645,-10000.0,0.00043528,30]
[404188604,1769914254655,-10000.0,0.00043528,30]
[404188605,1769914254665,-2465.94,0.00043529,30]
[404188606,1769914254675,-2899.0,0.00043529,30]
[404188607,1769914254685,-303.93,0.00043529,120]
[404188608,1769914254696,-854.2589148,0.00043529,120]
[404188609,1769914254706,-500.0,0.00043529,120]
[404188610,1769914254716,-500.0,0.00043529,120]
[404188611,1769914254725,-500.0,0.00043529,120]
[404188612,1769914254735,-500.0,0.00043529,120]
[404188613,1769914254745,-500.0,0.00043529,120]
[404188614,1769914254755,-578.20924308,0.00043529,120]
[404188615,1769914254765,-500.0,0.00043529,120]
[404188616,1769914254775,-500.0,0.00043529,120]
[404188617,1769914254785,-500.0,0.00043529,120]
[404188618,1769914254795,-1000.0,0.00043529,120]
[404188619,1769914254805,-500.0,0.00043529,120]
[404188620,1769914254815,-500.0,0.00043529,120]
[404188621,1769914254824,-500.0,0.00043529,120]
[404188622,1769914254838,-1000.0,0.00043529,120]
[404188623,1769914254848,-500.0,0.00043529,120]
[404188624,1769914254858,-500.0,0.00043529,120]
[404188625,1769914254868,-500.0,0.00043529,120]
[404188626,1769914254879,-500.0,0.00043529,120]
[404188627,1769914254890,-500.0,0.00043529,120]
[404188628,1769914254900,-500.0,0.00043529,120]
[404188629,1769914254911,-500.0,0.00043529,120]
[404188630,1769914254921,-354.55089917,0.00043529,120]
[404188631,1769914254931,-500.0,0.00043529,120]
[404188632,1769914254941,-500.0,0.00043529,120]
[404188633,1769914254952,-1000.0,0.00043529,120]
[404188634,1769914254963,-322.6107,0.00043529,120]
[404188635,1769914254974,-582.77228948,0.00043529,120]
[404188636,1769914254985,-522.46587888,0.00043529,120]
[404188637,1769914254997,-1000.0,0.00043529,120]
[404188638,1769914255011,-750.0,0.00043529,120]
[404188639,1769914255021,-3000.0,0.00043529,120]
[404188640,1769914255032,-1000.0,0.00043529,120]
[404188641,1769914255042,-174.61919141,0.00043529,120]
[404188642,1769914255052,-2500.0,0.00043529,120]
[404188643,1769914255063,-1000.0,0.00043529,120]
[404188644,1769914255074,-1000.0,0.00043529,120]
[404188645,1769914255085,-1000.0,0.00043529,120]
[404188646,1769914255095,-1000.0,0.00043529,120]
[404188647,1769914255106,-500.0,0.00043529,120]
[404188648,1769914255117,-500.0,0.00043529,120]
[404188649,1769914255127,-209.40437684,0.00043529,120]
[404188650,1769914255140,-500.0,0.00043529,120]
[404188651,1769914255151,-500.0,0.00043529,120]
[404188652,1769914255162,-250.0,0.00043529,120]
[404188653,1769914255172,-500.0,0.00043529,120]
[404188654,1769914255184,-500.0,0.00043529,120]
[404188655,1769914255486,-500.0,0.00043529,120]
[404188656,1769914255496,-500.0,0.00043529,120]
[404188657,1769914255509,-500.0,0.00043529,120]
[404188658,1769914255518,-500.0,0.00043529,120]
[404188659,1769914255528,-151.0,0.00043529,120]
[404188660,1769914255537,-500.0,0.00043529,120]
[404188661,1769914255547,-205.63903539,0.00043529,120]
[404188662,1769914255557,-500.0,0.00043529,120]
[404188663,1769914255567,-500.0,0.00043529,120]
[404188664,1769914255576,-170.23,0.00043529,30]
[404188665,1769914255586,-10000.0,0.00043529,30]
[404188666,1769914255595,-10000.0,0.00043529,30]
[404188667,1769914255605,-10000.0,0.00043529,30]
[404188668,1769914255614,-10000.0,0.00043529,30]
[404188669,1769914255624,-200.0,0.00043529,30]
[404188670,1769914255634,-1000.0,0.0004353,120]
[404188671,1769914255643,-200.0,0.0004353,7]
[404188672,1769914255653,-500.0,0.00043534,30]
[404188673,1769914255663,-808.39063718,0.00043536,15]
[404188674,1769914255673,-9410.1,0.00043538,30]
[404188675,1769914255682,-150.63046728,0.00043538,30]
[404188676,1769914255692,-1000.0,0.00043538,30]
[404188677,1769914255702,-1000.0,0.00043538,30]
[404188678,1769914255715,-1000.0,0.00043538,30]
[404188679,1769914255725,-1000.0,0.00043538,30]
[404188680,1769914255734,-1000.0,0.00043538,30]
[404188681,1769914255744,-1000.0,0.00043538,30]
[404188682,1769914255753,-1000.0,0.00043538,30]
[404188683,1769914255763,-1000.0,0.00043538,30]
[404188684,1769914255772,-1000.0,0.00043538,30]
[404188685,1769914255781,-1000.0,0.00043538,30]
[404188686,1769914255791,-1000.0,0.00043538,30]
[404188687,1769914255800,-1000.0,0.00043538,30]
[404188688,1769914255810,-1000.0,0.00043538,30]
[404188689,1769914255820,-1000.0,0.00043538,30]
[404188690,1769914255829,-385.58,0.00043538,30]
[404188691,1769914255838,-204.68825395,0.00043538,30]
[404188692,1769914255848,-1648.04442455,0.00043538,30]
[404188693,1769914255859,-1648.04442455,0.00043538,30]
[404188694,1769914255868,-1648.04442455,0.00043538,30]
[404188695,1769914255878,-1648.04442455,0.00043538,30]
[404188696,1769914255888,-483.46413643,0.00043547,2]
[404188697,1769914255900,-391.0,0.00043562,2]
[404188698,1769914255910,-400.0,0.0004357,3]
[404188699,1769914255919,-400.0,0.0004357,3]
[404188700,1769914255929,-4629.92748387,0.00043576,30]
[404188701,1769914255939,-17488.23207677,0.00043576,30]
[404188702,1769914255949,-3406.57267635,0.00043576,30]
[404188703,1769914255959,-170.103866,0.000436,10]
[404188704,1769914255968,-469.0,0.000436,30]
[404188705,1769914255978,-203.0,0.000436,30]
[404188706,1769914255987,-383.0,0.00043622,2]
[404188707,1769914255996,-161.39427395,0.00043636,30]
[404188708,1769914256007,-200.0,0.00043636,7]
[404188709,1769914256017,-289.79433082,0.00043636,30]
[404188710,1769914256026,-382.0,0.0004364,30]
[404188711,1769914256036,-150.0,0.00043642,120]
[404188712,1769914256046,-194.13605787,0.00043642,30]
[404188713,1769914256055,-202.47797069,0.00043642,30]
[404188714,1769914256064,-3768335.87348857,0.00043642,10]
[404188715,1769914256287,-151.0,0.00018,2]
[404188716,1769914256299,-300.28744886,0.00039298,2]
[404188717,1769914256309,-202.61262359,0.00043642,10]
[404188718,1769914256624,-151.0,0.00017,2]
[404188719,1769914256636,-151.0,0.00018,2]
[404188720,1769914256648,-151.0,0.00018,2]
[404188721,1769914256658,-300.47289072,0.00039298,2]
[404188722,1769914256668,-865.55,0.00043287,2]
[404188723,1769914256677,-500.0,0.00043287,120]
[404188724,1769914256688,-241.8132405,0.00043287,2]
[404188725,1769914256699,-623.7367595,0.00043287,2]
[404188726,1769914256710,-500.0,0.00043287,120]
[404188727,1769914256719,-865.55,0.00043287,2]
[404188728,1769914256729,-500.0,0.00043287,120]
[404188729,1769914256740,-725.9842405,0.00043287,2]
[404188730,1769914256753,-139.5657595,0.00043287,2]
[404188731,1769914256764,-500.0,0.00043287,120]
[404188732,1769914256775,-865.55,0.00043287,2]
[404188733,1769914256785,-500.0,0.00043287,120]
[404188734,1769914256794,-865.55,0.00043287,2]
[404188735,1769914256804,-500.0,0.00043287,120]
[404188736,1769914256814,-865.55,0.00043287,2]
[404188737,1769914256823,-500.0,0.00043287,120]
[404188738,1769914256832,-865.55,0.00043287,2]
[404188739,1769914256842,-500.0,0.00043287,120]
[404188740,1769914256852,-865.55,0.00043287,2]
[404188741,1769914256861,-327.4542105,0.00043287,120]
[404188742,1769914256873,-172.5457895,0.00043287,120]
[404188743,1769914256882,-530.44469655,0.00043287,2]
[404188744,1769914256893,-335.10530345,0.00043287,2]
[404188745,1769914256902,-500.0,0.00043287,120]
[404188746,1769914256911,-865.71604302,0.00043287,2]
[404188747,1769914256920,-500.0,0.00043287,120]
[404188748,1769914256929,-387.25194279,0.00043287,120]
[404188749,1769914256940,-112.74805721,0.00043287,120]
[404188750,1769914256949,-500.0,0.00043287,120]
[404188751,1769914256959,-299.17865353,0.00043287,120]
[404188752,1769914256970,-200.82134647,0.00043287,120]
[404188753,1769914256979,-507.37448942,0.00043287,120]
[404188754,1769914256988,-500.0,0.00043529,120]
[404188755,1769914256997,-500.0,0.00043529,120]
[404188756,1769914257016,-500.0,0.00043529,120]
[404188757,1769914257026,-500.0,0.00043529,120]
[404188758,1769914257035,-500.0,0.00043529,120]
[404188759,1769914257044,-500.0,0.00043529,120]
[404188760,1769914257054,-500.0,0.00043529,120]
[404188761,1769914257063,-500.0,0.00043529,120]
[404188762,1769914257072,-500.0,0.00043529,120]
[404188763,1769914257082,-32574.40136069,0.00043642,10]
[404188764,1769914257094,-424.16878209,0.00043642,10]
[404188765,1769914257163,-162.15718318,0.00014839,2]
[404188766,1769914257173,-144.8556695,0.00016791,2]
[404188767,1769914257184,-352.3833357,0.00016791,2]
[404188768,1769914257195,-394.8787062,0.00016791,2]
[404188769,1769914257206,-528.4636682,0.00016791,2]
[404188770,1769914257221,-468.56597115,0.00016791,2]
[404188771,1769914257233,-565.36964925,0.00016791,2]
[404188772,1769914257246,-500.0,0.00043529,120]
[404188773,1769914257257,-500.0,0.00043529,120]
[404188774,1769914257268,-556.22311303,0.00043642,10]
[404188775,1769914257283,-408.53508879,0.00043642,10]
[404188776,1769914257294,-28479.734216,0.00043642,10]
[404188777,1769914257329,-2445.0,0.00019791,2]
[404188778,1769914257341,-2445.0,0.00022791,2]
[404188779,1769914257352,-2445.0,0.00025791,2]
[404188780,1769914257363,-2445.0,0.00028791,2]
[404188781,1769914257373,-1734356.22320215,0.00043642,10]
[404188782,1769914257386,-1289.2809558,0.00043642,10]
[404188783,1769914257412,-1000.0,0.00015973,2]
[404188784,1769914257422,-1041.998748,0.00042319,2]
[404188785,1769914257438,-7056.281252,0.00042319,2]
[404188786,1769914257448,-2489.05142809,0.00043642,10]
[404188787,1769914261247,195.0,0.0001757,120]
[404188788,1769914262032,200.0,0.0001757,120]
[404188795,1769914325628,1000.0,0.00043642,120]
[404188796,1769914326258,1000.0,0.00043642,120]
[404188797,1769914326814,1000.0,0.00043642,120]
[404188798,1769914326895,1000.0,0.00043642,120]
[404188799,1769914328081,854.2589148,0.00043642,120]
[404188800,1769914328333,520.0,0.00043642,120]
[404188801,1769914328829,500.0,0.00043642,120]
[404188802,1769914329467,500.0,0.00043642,120]
[404188803,1769914330085,500.0,0.00043642,120]
[404188804,1769914336637,500.0,0.00043642,120]
[404188805,1769914336781,3000.0,0.00043642,120]
[404188806,1769914337166,500.0,0.00043642,120]
[404188807,1769914337706,500.0,0.00043642,120]
[404188808,1769914352857,500.0,0.00043642,120]
[404188815,1769914385915,514.15812193,0.00043642,120]
[404188816,1769914385977,2500.0,0.00043642,120]
[404188818,1769914388709,322.6107,0.00043642,120]
[404188819,1769914391307,550.33581997,0.00043642,120]
[404188820,1769914395721,201.12765535,0.00043642,120]
[404188821,1769914399630,241.48917201,0.00043642,120]
[404188826,1769914493659,370.0,0.00043642,30]
[404188859,1769914891109,172.0,1.19e-06,2]
[404188871,1769914951386,1029.2490184,0.00043561,120]
[404188898,1769915431932,-500.0,0.000144,2]
[404188899,1769915431944,-269.0,0.000144,2]
[404188900,1769915431955,-250.0,0.000147,2]
[404188901,1769915431965,-250.0,0.00015,2]
[404188902,1769915431974,-150.0,0.00015065,2]
[404188903,1769915431983,-952.5,0.00015305,2]
[404188904,1769915431994,-153.07,0.00015305,2]
[404188905,1769915432003,-172.1193364,0.00015334,2]
[404188906,1769915432012,-165.325,0.00015434,2]
[404188907,1769915432021,-2062.301,0.00015434,2]
[404188908,1769915432030,-793.46,0.00015473,2]
[404188909,1769915432039,-1200.0,0.00015577,2]
[404188910,1769915432048,-454.02295964,0.00015578,2]
[404188911,1769915432059,-981.55704036,0.00015578,2]
[404188912,1769915432069,-300.0,0.00015646,2]
[404188913,1769915432078,-300.0,0.00015647,2]
[404188914,1769915432087,-300.0,0.00015647,2]
[404188915,1769915432096,-126645.17614154,0.00015648,2]